bitfinex/quotes_SOLUSD_20250724
["timestamp","ask_amount","ask_price","bid_price","bid_amount"]
[1753346525697,39.45,186.03,185.97,0.06]
[1753346525901,26.69,186.02,185.97,0.06]
[1753346526074,38.76,186.01,185.97,0.06]
[1753346526273,5.37634408,186.0,185.97,0.06]
[1753346526496,6.06634408,186.0,185.97,0.06]
[1753346526702,5.37634408,186.0,185.97,0.06]
[1753346526994,0.69,185.99,185.97,0.06]
[1753346527590,0.69,185.98,185.97,0.06]
[1753346528495,0.69,186.01,185.97,0.06]
[1753346528673,5.37576604,186.02,185.97,0.06]
[1753346528674,0.69,186.0,185.97,0.06]
[1753346529276,0.69,185.99,185.97,0.06]
[1753346529589,5.37576604,186.02,185.97,0.06]
[1753346529792,0.69,186.01,185.97,0.06]
[1753346530782,0.69,186.01,185.97,7.67876125]
[1753346531084,0.69,186.01,185.97,0.06]
[1753346531292,0.69,186.01,185.97,7.67876125]
[1753346531597,0.69,186.04,185.97,0.76]
[1753346531887,0.69,186.03,185.97,0.06]
[1753346532872,5.37576604,186.02,185.97,0.06]
[1753346533077,0.66,186.01,185.97,0.06]
[1753346533473,3.46402052,186.01,185.97,0.06]
[1753346533784,0.66,186.0,185.97,0.06]
[1753346533988,38.72,185.99,185.97,0.06]
[1753346534189,32.332,185.97,185.96,1e-08]
[1753346534570,32.992,185.97,185.96,1e-08]
[1753346535091,26.0,185.94,185.92,0.06]
[1753346535495,0.66,185.93,185.92,0.06]
[1753346536295,39.46,185.93,185.92,0.06]
[1753346536977,44.8383682,185.93,185.92,0.06]
[1753346538794,38.82,185.93,185.92,0.06]
[1753346539000,0.66,185.99,185.93,16.78468397]
[1753346539305,0.66,185.99,185.95,7.61876125]
[1753346539795,0.66,185.98,185.94,7.61876125]
[1753346540178,6.03693581,185.98,185.94,7.61876125]
[1753346540575,0.66,185.98,185.94,7.61876125]
[1753346540779,0.66,185.97,185.92,0.06]
[1753346541000,0.66,185.96,185.92,0.06]
[1753346541181,38.92,185.95,185.92,0.06]
[1753346542198,44.29797345,185.95,185.92,0.06]
[1753346542708,0.66,185.94,185.92,0.06]
[1753346543205,0.66,185.93,185.92,0.06]
[1753346544479,6.0383682,185.93,185.92,0.06]
[1753346544944,12.4900682,185.93,185.92,1e-08]
[1753346545203,12.4900682,185.93,185.9,1e-08]
[1753346545204,1.6484,185.92,185.9,1e-08]
[1753346545504,38.92,185.91,185.79,0.06]
[1753346545712,0.66,185.9,185.79,0.06]
[1753346545889,26.0,185.88,185.87,1e-08]
[1753346546092,26.0,185.88,185.79,0.06]
[1753346546300,39.56,185.87,185.79,0.06]
[1753346546487,5.38068334,185.85,185.79,0.06]
[1753346546901,6.04068334,185.85,185.79,0.06]
[1753346547482,0.66,185.85,185.79,16.84468397]
[1753346547702,0.66,185.85,185.8,0.68]
[1753346547703,38.92,185.85,185.8,0.68]
[1753346548490,38.92,185.85,185.81,16.78468397]
[1753346548710,6.53065304,185.92,185.85,16.78468397]
[1753346548910,38.9,185.91,185.85,16.78468397]
[1753346549212,38.9,185.91,185.88,7.61876125]
[1753346549511,38.9,185.91,185.87,7.61876125]
[1753346549894,44.27896665,185.91,185.87,7.61876125]
[1753346550207,38.9,185.91,185.89,7.61876125]
[1753346550610,44.27896431,185.91,185.88,7.61876125]
[1753346550906,44.27896431,185.91,185.85,24.40344522]
[1753346550907,0.66,185.9,185.85,24.40344522]
[1753346551090,0.66,185.9,185.84,16.84468397]
[1753346551290,0.66,185.9,185.85,7.61876125]
[1753346551986,6.03949744,185.9,185.85,8.29876125]
[1753346552317,0.66,185.89,185.84,7.67876125]
[1753346552524,0.66,185.89,185.84,0.06]
[1753346552689,5.37949744,185.9,185.84,0.06]
[1753346552885,38.9,185.89,185.87,7.61876125]
[1753346553104,38.9,185.89,185.85,0.68]
[1753346553303,38.9,185.89,185.86,7.61876125]
[1753346554893,44.27960993,185.89,185.86,7.61876125]
[1753346555212,38.9,185.89,185.86,7.61876125]
[1753346555411,38.9,185.89,185.87,25.08344522]
[1753346555608,38.9,185.89,185.87,17.46468397]
[1753346555803,38.9,185.89,185.87,16.78468397]
[1753346556003,38.9,185.89,185.87,24.40344522]
[1753346556216,38.9,185.89,185.87,16.78468397]
[1753346557114,44.27955893,185.89,185.85,0.68]
[1753346557321,44.27955893,185.89,185.85,7.61876125]
[1753346557322,39.56,185.89,185.85,7.61876125]
[1753346557491,39.56,185.89,185.87,7.61876125]
[1753346557492,38.86,185.89,185.87,7.61876125]
[1753346558818,44.23957694,185.89,185.85,16.78468397]
[1753346559023,0.66,185.88,185.84,7.67876125]
[1753346559198,44.23957694,185.89,185.84,7.67876125]
[1753346559400,44.89957694,185.89,185.84,7.67876125]
[1753346559618,44.89957694,185.89,185.84,8.35876125]
[1753346560000,44.89957694,185.89,185.84,7.67876125]
[1753346560811,44.89957694,185.89,185.85,7.61876125]
[1753346561817,0.66,185.88,185.84,7.67876125]
[1753346562513,6.04001676,185.88,185.84,0.06]
[1753346562718,6.04001676,185.88,185.84,7.67876125]
[1753346563494,0.66,185.88,185.85,7.61876125]
[1753346563695,44.26956284,185.89,185.85,7.61876125]
[1753346564010,44.94956284,185.89,185.85,7.61876125]
[1753346564320,44.26956284,185.89,185.84,0.06]
[1753346564613,5.38010437,185.87,185.84,0.06]
[1753346564812,38.82,185.86,185.84,0.06]
[1753346565017,39.5,185.86,185.84,0.06]
[1753346565216,38.82,185.86,185.84,0.06]
[1753346565397,0.68,185.85,185.84,0.06]
[1753346565597,38.82,185.85,185.84,0.06]
[1753346566920,0.03,185.89,185.84,0.73]
[1753346567219,38.8,185.88,185.85,7.61876125]
[1753346568128,38.8,185.88,185.84,7.67876125]
[1753346568313,44.17984393,185.88,185.84,7.67876125]
[1753346568623,44.85984393,185.88,185.84,7.67876125]
[1753346569318,38.8,185.88,185.84,8.34876125]
[1753346569798,38.8,185.88,185.84,13.72959608]
[1753346569995,38.8,185.88,185.86,16.78468397]
[1753346570326,38.8,185.88,185.86,24.40344522]
[1753346572516,38.8,185.88,185.86,30.45382047]
[1753346572826,0.03,185.89,185.88,16.78468397]
[1753346573119,0.03,185.89,185.88,24.40344522]
[1753346573297,0.03,185.89,185.86,7.61876125]
[1753346573719,0.03,185.89,185.87,7.61876125]
[1753346574012,0.03,185.89,185.87,8.28876125]
[1753346575119,0.03,185.89,185.87,7.61876125]
[1753346575507,0.71,185.89,185.87,7.61876125]
[1753346577105,0.03,185.89,185.87,7.61876125]
[1753346577616,0.03,185.89,185.84,16.84468397]
[1753346577802,0.68,185.88,185.85,7.61876125]
[1753346578011,0.71,185.89,185.85,7.61876125]
[1753346578214,0.68,185.88,185.84,16.84468397]
[1753346578400,0.68,185.87,185.84,24.46344522]
[1753346578794,39.36,185.87,185.84,24.46344522]
[1753346579399,0.68,185.86,185.84,0.06]
[1753346580525,0.68,185.85,185.84,0.06]
[1753346581420,6.06068334,185.85,185.84,0.06]
[1753346581724,12.35498334,185.85,185.84,0.06]
[1753346582224,38.68,185.86,185.84,0.73]
[1753346582530,38.68,185.86,185.84,0.06]
[1753346582822,38.68,185.86,185.84,0.73]
[1753346583016,2.83369981,185.89,185.85,24.40344522]
[1753346583218,44.10955355,185.89,185.86,0.67]
[1753346583426,38.73,185.89,185.87,7.61876125]
[1753346584028,0.03,185.89,185.88,24.40344522]
[1753346584213,0.03,185.89,185.88,25.07344522]
[1753346584618,0.03,185.89,185.88,24.40344522]
[1753346585511,0.03,185.89,185.86,16.78468397]
[1753346586016,0.03,185.89,185.86,24.40344522]
[1753346586330,0.68,185.88,185.85,33.67876125]
[1753346586530,0.03,185.89,185.85,33.67876125]
[1753346586827,0.03,185.88,185.85,7.67876125]
[1753346587002,0.71,185.88,185.85,33.67876125]
[1753346587206,38.68,185.87,185.85,33.67876125]
[1753346588129,0.68,185.86,185.85,0.06]
[1753346590520,12.17039384,185.86,185.85,0.06]
[1753346592614,15.79391535,185.86,185.85,0.06]
[1753346595109,15.79391535,185.86,185.84,0.06]
[1753346595333,40.9331,185.85,185.81,0.06]
[1753346595634,10.0,185.82,185.78,1e-08]
[1753346595840,1.6412,185.8,185.69,16.78468397]
[1753346596039,39.08,185.79,185.68,0.66]
[1753346596237,6.9511,185.78,185.68,0.66]
[1753346596441,0.66,185.77,185.67,16.78468397]
[1753346596631,39.08,185.76,185.67,16.78468397]
[1753346597029,0.66,185.75,185.66,0.2]
[1753346597239,18.84354473,185.74,185.66,0.2]
[1753346597480,39.06,185.73,185.66,0.2]
[1753346597647,8.148,185.72,185.66,0.2]
[1753346597821,8.808,185.72,185.66,0.2]
[1753346598021,0.66,185.71,185.66,0.2]
[1753346598221,39.16,185.7,185.66,0.2]
[1753346598431,8.148,185.72,185.66,0.2]
[1753346598432,39.82,185.69,185.66,0.2]
[1753346598939,0.66,185.68,185.66,0.2]
[1753346599122,6.04589971,185.67,185.66,0.2]
[1753346600527,6.04589971,185.67,185.66,1e-08]
[1753346602226,45.18589971,185.67,185.66,1e-08]
[1753346602628,6.04589971,185.67,185.66,1e-08]
[1753346602842,45.16589971,185.67,185.66,1e-08]
[1753346603847,47.96925207,185.67,185.66,1e-08]
[1753346605551,8.84925207,185.67,185.66,1e-08]
[1753346605741,47.92925207,185.67,185.66,1e-08]
[1753346606734,47.94925207,185.67,185.66,1e-08]
[1753346608850,8.18925207,185.67,185.66,1e-08]
[1753346609063,47.28925207,185.67,185.66,1e-08]
[1753346609431,47.94925207,185.67,185.66,1e-08]
[1753346610448,47.28925207,185.67,185.66,1e-08]
[1753346611759,2.80335236,185.67,185.66,25.06344523]
[1753346611941,5.38358008,185.75,185.67,16.78468397]
[1753346612141,39.06,185.74,185.71,7.61876125]
[1753346612561,0.03,185.76,185.72,8.27876125]
[1753346612742,39.04,185.75,185.72,8.27876125]
[1753346613056,39.04,185.75,185.73,0.66]
[1753346613257,39.04,185.75,185.73,8.27876125]
[1753346613466,39.04,185.75,185.74,0.66]
[1753346613757,5.38386992,185.74,185.68,0.66]
[1753346613961,39.7,185.73,185.66,0.66000001]
[1753346614156,39.7,185.73,185.66,8.27876126]
[1753346614359,39.04,185.73,185.67,0.66]
[1753346614562,39.04,185.73,185.67,8.27876125]
[1753346614856,5.38386992,185.74,185.69,7.61876125]
[1753346615174,39.04,185.72,185.7,0.66]
[1753346615960,44.42449059,185.72,185.7,0.66]
[1753346616356,44.42449059,185.72,185.68,8.27876125]
[1753346616564,39.04,185.72,185.69,0.66]
[1753346616739,39.04,185.72,185.7,0.66]
[1753346616943,26.69,185.76,185.71,8.27876125]
[1753346616944,0.03,185.76,185.71,8.27876125]
[1753346617153,0.03,185.76,185.7,16.78468397]
[1753346617154,39.02,185.75,185.72,0.66]
[1753346617358,39.02,185.75,185.73,0.66]
[1753346617662,39.02,185.75,185.74,0.66]
[1753346618048,0.03,185.76,185.74,0.66]
[1753346618253,44.41334841,185.76,185.74,0.66]
[1753346618466,39.03,185.76,185.74,0.66]
[1753346619153,45.07333854,185.76,185.7,0.66]
[1753346619349,44.41333854,185.76,185.71,7.61876125]
[1753346619551,44.41333854,185.76,185.72,8.27876125]
[1753346619747,0.03,185.76,185.73,8.27876125]
[1753346619977,38.98,185.75,185.74,0.66]
[1753346620848,38.98,185.75,185.74,8.27876125]
[1753346621048,0.03,185.76,185.74,8.27876125]
[1753346621049,38.99,185.76,185.74,8.27876125]
[1753346621257,38.99,185.76,185.74,0.66]
[1753346621861,38.99,185.76,185.75,0.66]
[1753346622165,38.99,185.76,185.72,0.66]
[1753346622368,38.99,185.76,185.71,22.16940761]
[1753346622576,38.99,185.76,185.73,0.66]
[1753346622879,38.99,185.76,185.74,0.66]
[1753346623446,38.99,185.76,185.72,0.69]
[1753346624359,38.99,185.76,185.73,0.69]
[1753346625546,44.37330063,185.76,185.73,0.69]
[1753346625749,44.37330063,185.76,185.73,7.61876125]
[1753346626066,38.99,185.76,185.73,8.30876125]
[1753346626246,38.99,185.76,185.74,8.30876125]
[1753346626449,0.03,185.76,185.75,25.09344522]
[1753346627171,0.03,185.76,185.75,4.69739684]
[1753346627369,0.03,185.76,185.75,0.69]
[1753346628773,0.03,185.76,185.68,4.69739684]
[1753346628774,0.73,185.76,185.68,4.69739684]
[1753346628956,38.88,185.75,185.67,22.17208081]
[1753346629278,0.7,185.74,185.67,22.17208081]
[1753346629581,0.7,185.74,185.68,4.69739684]
[1753346629875,0.7,185.74,185.68,5.38739684]
[1753346630067,5.3841598,185.73,185.68,5.38739684]
[1753346630264,38.88,185.72,185.68,4.69739684]
[1753346630469,38.88,185.72,185.69,0.69]
[1753346632075,44.26447844,185.72,185.69,0.69]
[1753346633674,0.7,185.71,185.67,24.44560338]
[1753346633866,44.26447844,185.72,185.67,16.78468397]
[1753346634073,0.7,185.7,185.67,16.78468397]
[1753346634384,39.52,185.69,185.66,1e-08]
[1753346635383,5.38560965,185.68,185.66,1e-08]
[1753346637165,33.52379891,185.76,185.71,16.78468397]
[1753346637166,0.03,185.76,185.71,16.78468397]
[1753346637362,0.03,185.76,185.75,24.44560338]
[1753346637767,0.03,185.76,185.75,25.13560338]
[1753346639083,0.03,185.76,185.75,34.89963691]
[1753346639585,0.03,185.76,185.75,30.51918346]
[1753346644479,0.03,185.8,185.79,44.33618397]
[1753346644785,0.03,185.84,185.79,98.95626489]
[1753346644977,0.03,185.84,185.8,0.69]
[1753346645165,0.03,185.84,185.83,50.44560338]
[1753346645784,0.03,185.84,185.83,51.13560338]
[1753346646283,0.03,185.84,185.83,56.51686582]
[1753346646691,0.03,185.84,185.83,51.13560338]
[1753346646990,0.03,185.84,185.83,24.44560338]
[1753346647184,0.73,185.84,185.77,0.69]
[1753346647486,0.73,185.84,185.8,7.66091941]
[1753346647675,0.7,185.83,185.8,7.66091941]
[1753346647866,0.7,185.83,185.77,0.69]
[1753346648179,5.38155203,185.82,185.78,7.66091941]
[1753346648685,0.7,185.81,185.78,7.66091941]
[1753346648888,0.7,185.81,185.79,7.66091941]
[1753346649580,5.38155203,185.82,185.79,7.66091941]
[1753346650181,6.08155203,185.82,185.79,7.66091941]
[1753346651773,6.08155203,185.82,185.78,7.66091941]
[1753346651986,6.08155203,185.82,185.76,26.69]
[1753346652288,0.7,185.81,185.78,7.66091941]
[1753346652465,0.7,185.8,185.76,26.0]
[1753346652668,5.38242101,185.79,185.77,7.66091941]
[1753346653392,5.38242101,185.79,185.76,7.66091941]
[1753346653579,5.38218275,185.8,185.78,7.66091941]
[1753346654297,0.03,185.82,185.78,8.35091941]
[1753346654595,0.03,185.82,185.74,93.5837585]
[1753346654596,0.03,185.82,185.8,7.66091941]
[1753346655198,0.03,185.82,185.79,0.69]
[1753346655577,0.03,185.82,185.8,7.66091941]
[1753346656802,0.03,185.82,185.8,0.69]
[1753346657002,0.03,185.82,185.81,8.35091941]
[1753346657703,0.03,185.82,185.81,26.69]
[1753346657906,0.03,185.82,185.81,34.35091941]
[1753346659794,0.03,185.82,185.81,26.69]
[1753346660001,0.03,185.82,185.81,34.35091941]
[1753346660379,0.03,185.82,185.81,40.27094523]
[1753346660691,0.03,185.84,185.81,40.27094523]
[1753346660891,0.03,185.86,185.85,26.0]
[1753346661095,0.03,185.86,185.85,33.66091941]
[1753346661399,0.03,185.86,185.85,34.35091941]
[1753346661898,0.03,185.86,185.85,39.73160275]
[1753346662980,0.03,185.88,185.85,39.73160275]
[1753346663179,0.03,185.92,185.87,15.32183882]
[1753346663391,0.03,185.92,185.91,7.66091941]
[1753346663705,0.03,185.92,185.91,8.19881409]
[1753346663883,0.03,185.92,185.91,8.88881409]
[1753346664402,0.03,185.92,185.91,47.60881409]
[1753346664904,0.03,185.92,185.91,39.94789468]
[1753346665202,0.03,185.92,185.91,7.66091941]
[1753346666703,0.03,185.92,185.9,26.0]
[1753346666902,0.03,185.92,185.91,7.66091941]
[1753346667198,0.74,185.92,185.91,7.66091941]
[1753346667375,0.74,185.92,185.9,7.66091941]
[1753346667574,0.71,185.91,185.89,7.66091941]
[1753346667999,0.71,185.91,185.88,33.66091941]
[1753346668704,5.37923614,185.9,185.88,33.66091941]
[1753346669893,5.37923614,185.9,185.86,0.69]
[1753346670101,6.08923614,185.9,185.88,7.66091941]
[1753346670476,6.08923614,185.9,185.87,7.66091941]
[1753346670695,0.71,185.89,185.87,7.66091941]
[1753346671080,5.37981493,185.88,185.84,7.66091941]
[1753346671286,0.71,185.87,185.84,7.66091941]
[1753346671596,0.71,185.86,185.82,7.66091941]
[1753346671791,0.71,185.86,185.79,38.64]
[1753346672113,0.71,185.86,185.82,7.66091941]
[1753346672788,5.37981493,185.88,185.82,8.35091941]
[1753346672979,6.08981493,185.88,185.83,7.66091941]
[1753346673180,0.71,185.87,185.83,7.66091941]
[1753346673384,18.82732651,185.9,185.84,7.66091941]
[1753346673595,0.71,185.89,185.84,7.66091941]
[1753346673793,0.71,185.88,185.79,72.30091941]
[1753346674007,18.82732651,185.9,185.86,7.66091941]
[1753346674211,0.71,185.89,185.86,7.66091941]
[1753346674703,5.37898783,185.91,185.88,7.66091941]
[1753346674901,5.37898783,185.91,185.9,7.66091941]
[1753346675409,5.40865748,185.92,185.9,7.66091941]
[1753346676407,0.71,185.91,185.86,7.66091941]
[1753346676791,18.85530119,185.92,185.86,7.66091941]
[1753346676988,18.85530119,185.92,185.82,26.0]
[1753346676989,0.71,185.9,185.87,7.66091941]
[1753346677207,5.40865748,185.92,185.89,7.66091941]
[1753346677390,6.11865748,185.92,185.89,7.66091941]
[1753346677703,0.03,185.92,185.91,7.66091941]
[1753346677904,0.03,185.92,185.91,8.35091941]
[1753346678104,0.03,185.92,185.91,34.35091941]
[1753346678912,0.03,185.92,185.89,26.0]
[1753346679208,0.03,185.92,185.91,7.66091941]
[1753346679708,0.03,185.92,185.91,8.35091941]
[1753346680612,0.03,185.92,185.91,34.35091941]
[1753346686909,0.03,185.92,185.91,39.72986621]
[1753346687593,0.03,185.92,185.91,13.72986621]
[1753346687795,0.03,185.92,185.91,14.26776089]
[1753346688308,0.03,185.94,185.93,26.0]
[1753346688504,0.03,185.94,185.93,72.91875623]
[1753346688708,0.03,185.94,185.93,73.57875623]
[1753346689410,0.03,185.94,185.93,40.23712443]
[1753346689613,0.03,185.94,185.93,78.95712443]
[1753346692603,0.03,185.94,185.93,24.44560338]
[1753346692823,0.75,185.94,185.93,24.44560338]
[1753346693210,0.03,185.98,185.97,42.78468397]
[1753346693404,11.78261726,186.06,186.0,26.0]
[1753346693405,6.4078,186.06,186.0,26.0]
[1753346693633,6.4078,186.06,186.0,82.12231837]
[1753346693812,6.4078,186.06,186.0,87.49866245]
[1753346694015,6.4078,186.06,186.0,89.24560338]
[1753346694322,0.82,186.05,186.0,95.28194746]
[1753346695422,0.82,186.05,186.0,89.24560338]
[1753346695626,6.09551698,186.03,186.0,42.78468397]
[1753346695832,0.72,186.03,186.0,50.44560338]
[1753346696007,6.0954921,186.03,186.0,50.44560338]
[1753346696526,0.1,186.05,186.0,51.10560338]
[1753346696721,5.37521194,186.04,186.0,50.44560338]
[1753346697117,0.82,186.05,186.0,50.44560338]
[1753346697811,6.19495692,186.05,186.0,50.44560338]
[1753346698818,6.19495692,186.05,186.0,55.82194746]
[1753346699029,6.19495692,186.05,186.0,94.60194746]
[1753346699331,6.19495692,186.05,186.0,89.22560338]
[1753346700132,0.82,186.05,186.0,94.60194746]
[1753346700340,6.19491367,186.05,186.0,94.60194746]
[1753346700635,0.82,186.05,186.0,94.60194746]
[1753346700812,6.19492748,186.05,186.0,94.60194746]
[1753346701133,0.82,186.05,186.0,94.60194746]
[1753346702137,0.82,186.05,186.0,95.26194746]
[1753346702307,0.1,186.05,186.0,102.92286687]
[1753346702503,0.1,186.05,186.04,42.78468397]
[1753346702741,0.1,186.05,186.04,89.16560338]
[1753346703042,0.1,186.05,186.04,89.82560338]
[1753346704124,0.1,186.05,186.04,95.20079151]
[1753346704323,0.1,186.05,186.04,95.73831032]
[1753346705229,0.1,186.05,186.04,95.20079151]
[1753346706237,0.1,186.08,186.07,42.78468397]
[1753346706537,0.1,186.08,186.07,89.12560338]
[1753346706717,0.1,186.08,186.07,89.78560338]
[1753346709122,0.1,186.08,186.07,95.15992487]
[1753346710325,0.1,186.13,186.12,16.78468397]
[1753346710537,0.1,186.13,186.12,63.08560338]
[1753346711129,0.1,186.13,186.12,60.10222481]
[1753346711334,0.1,186.13,186.12,70.15264336]
[1753346711632,0.1,186.13,186.12,70.81264336]
[1753346711835,0.1,186.13,186.12,71.34993113]
[1753346712038,0.1,186.13,186.12,70.15264336]
[1753346712334,0.1,186.13,186.12,60.10222481]
[1753346712542,0.82,186.13,186.12,69.31754084]
[1753346712715,0.82,186.13,186.12,64.64]
[1753346712916,6.19258905,186.13,186.08,16.78468397]
[1753346713240,6.09287771,186.12,186.03,4.67754084]
[1753346713423,0.72,186.11,186.0,88.2]
[1753346713626,0.72,186.11,186.04,4.67754084]
[1753346713934,0.72,186.11,186.08,4.67754084]
[1753346714526,0.72,186.11,186.06,4.67754084]
[1753346714722,0.72,186.11,186.07,4.67754084]
[1753346715124,5.37345513,186.1,186.07,4.67754084]
[1753346715317,0.72,186.09,186.07,4.67754084]
[1753346715632,0.72,186.09,186.08,4.67754084]
[1753346716228,6.0931934,186.11,186.08,4.67754084]
[1753346716422,6.0931934,186.11,186.1,4.67754084]
[1753346716620,6.0931934,186.11,186.09,4.67754084]
[1753346716838,0.72,186.11,186.09,4.67754084]
[1753346717038,6.4174,186.12,186.1,4.67754084]
[1753346717223,6.4174,186.12,186.11,7.62576048]
[1753346717839,7.1374,186.12,186.1,7.62576048]
[1753346718040,7.1374,186.12,186.09,16.78468397]
[1753346718231,0.72,186.11,186.1,7.62576048]
[1753346718430,0.72,186.11,186.09,7.62576048]
[1753346718643,0.72,186.1,186.08,46.26576048]
[1753346719046,11.79040559,186.12,186.08,46.26576048]
[1753346719235,11.79040559,186.12,186.03,114.88]
[1753346719236,0.72,186.09,186.03,114.88]
[1753346719428,6.09374388,186.09,186.05,7.62576048]
[1753346719627,0.72,186.08,186.05,7.62576048]
[1753346719825,0.72,186.07,186.05,7.62576048]
[1753346721021,0.72,186.07,186.04,46.26576048]
[1753346721340,0.72,186.07,186.05,7.62576048]
[1753346722036,0.72,186.07,186.04,38.64]
[1753346722245,0.72,186.07,186.05,7.62576048]
[1753346723441,5.3742725,186.08,186.05,7.62576048]
[1753346723649,6.09383803,186.09,186.06,7.62576048]
[1753346723836,0.72,186.08,186.06,7.62576048]
[1753346724425,0.72,186.07,186.06,7.62576048]
[1753346724846,0.72,186.07,186.05,7.62576048]
[1753346725837,6.09382623,186.09,186.06,7.62576048]
[1753346726035,6.09382623,186.09,186.04,55.42468397]
[1753346726036,0.72,186.09,186.07,7.62576048]
[1753346726342,6.09325803,186.11,186.07,7.62576048]
[1753346726532,5.37325803,186.11,186.07,7.62576048]
[1753346726732,0.72,186.1,186.07,7.62576048]
[1753346726931,0.72,186.1,186.08,7.62576048]
[1753346727339,0.72,186.1,186.07,24.41044445]
[1753346727732,6.4174,186.12,186.09,7.62576048]
[1753346727939,6.4174,186.12,186.1,7.62576048]
[1753346728227,5.47263056,186.13,186.1,7.62576048]
[1753346728429,0.1,186.13,186.07,5.91166933]
[1753346728646,0.1,186.13,186.11,7.62576048]
[1753346728822,0.1,186.13,186.12,24.41044445]
[1753346730754,0.1,186.13,186.12,16.78468397]
[1753346730946,0.1,186.13,186.12,24.41044445]
[1753346732166,0.1,186.13,186.12,68.98332216]
[1753346732636,0.1,186.13,186.12,63.61044445]
[1753346732841,0.1,186.13,186.12,68.98332216]
[1753346733042,0.1,186.13,186.12,55.30468397]
[1753346733237,0.1,186.13,186.12,62.93044445]
[1753346733449,0.1,186.13,186.12,63.61044445]
[1753346734449,0.1,186.13,186.12,68.98332216]
[1753346734646,0.1,186.13,186.12,69.52060993]
[1753346735059,0.1,186.13,186.12,77.14637041]
[1753346735358,0.03,186.17,186.15,16.78468397]
[1753346735555,0.03,186.19,186.18,50.41044445]
[1753346735759,0.03,186.21,186.19,16.78468397]
[1753346735955,0.03,186.21,186.2,63.50750137]
[1753346736452,0.03,186.21,186.2,25.62750137]
[1753346736651,0.03,186.21,186.2,62.97044445]
[1753346736848,0.03,186.21,186.2,88.97044445]
[1753346737051,0.03,186.21,186.2,50.41044445]
[1753346737265,0.03,186.21,186.2,88.97044445]
[1753346737560,0.03,186.21,186.2,95.55807065]
[1753346738131,0.03,186.21,186.2,98.30381384]
[1753346739262,0.03,186.25,186.24,42.78468397]
[1753346739445,0.03,186.25,186.24,85.99652956]
[1753346739852,0.03,186.25,186.24,47.45652956]
[1753346741154,0.03,186.25,186.24,50.3974277]
[1753346741464,0.03,186.25,186.24,51.0774277]
[1753346741664,0.03,186.25,186.24,56.4468435]
[1753346742244,0.03,186.27,186.24,58.1060435]
[1753346742567,0.03,186.27,186.26,24.3974277]
[1753346742867,0.03,186.27,186.26,29.76626695]
[1753346743068,0.03,186.27,186.26,30.45626695]
[1753346743570,0.03,186.27,186.26,89.0374277]
[1753346743771,0.03,186.27,186.26,63.0374277]
[1753346744744,0.03,186.27,186.26,63.7274277]
[1753346744960,0.03,186.27,186.26,69.09626695]
[1753346749356,0.03,186.27,186.26,69.63315087]
[1753346751762,0.1,186.32,186.26,69.63315087]
[1753346752046,0.1,186.32,186.31,24.3974277]
[1753346752251,0.1,186.32,186.31,62.9174277]
[1753346752451,0.1,186.32,186.31,63.6074277]
[1753346753451,0.1,186.32,186.31,68.97482612]
[1753346755162,0.1,186.32,186.31,68.24482612]
[1753346755466,0.1,186.32,186.31,68.93482612]
[1753346759778,1e-08,186.32,186.31,68.93482612]
[1753346760162,0.72,186.4,186.35,16.78468397]
[1753346760364,0.72,186.4,186.39,7.61274373]
[1753346760678,0.03,186.4,186.39,62.8574277]
[1753346761055,0.72,186.4,186.39,62.8574277]